Workbook

Sheet Geral
A6: Fornecimento de Sistema de Captação Flutuante, Sistema de Acionamento de Motores de Indução Trifásicos e Grupo Gerador necessário para o Perímetro Irrigado Senador Nilo Coelho
A7: PLANILHA ORÇAMENTÁRIA | F7: VALOR TOTAL (R$)
F8: =G36 -> 0
A9: ITEM | B9: CÓDIGO | C9: DISCRIMINAÇÃO DOS SERVIÇOS | D9: UNID. | E9: QUANT. | F9: PREÇO (R$)
F10: UNITÁRIO | G10: TOTAL
A11: 1 | B11: SERVIÇOS PRELIMINARES | G11: =SUM(G12:G16) -> 0
A12: 1.1 | B12: 73847/001 | C12: Aluguel de Container (2 unidades) | D12: mês | E12: 5 | G12: =ROUND(F12*E12,2) -> 0
A13: 1.2 | B13: 74209/001 | C13: Placa de Obra em Chapa de Aço Galvanizado | D13: m² | E13: 12 | G13: 0
A14: 1.3 | B14: Composição | C14: Administração Local | D14: mês | E14: 5 | F14: =Composições!J31 -> 0 | G14: 0
A15: 1.4 | B15: Composição | C15: Mobilização | D15: Unid. | E15: 1 | F15: =Composições!J59 -> 0 | G15: 0
A16: 1.5 | B16: Composição | C16: Desmobilização | D16: Unid. | E16: 1 | F16: =Composições!J92 -> 0 | G16: 0
A17: 2 | B17: SISTEMA DE CAPTAÇÃO FLUTUANTE | G17: =G19+G20+G21+G23+G24+G26+G28+G29+G31+G33 -> 0 | L17: .
A18: 2.1 | B18: Sistema de Geração de Energia Elétrica | G18: =SUM(G19:G21) -> 0
A19: 2.1.1 | B19: Composição | C19: Fornecimento e Instalação de Grupo Gerador | D19: Unid. | E19: 16 | F19: =Composições!J128+Fornecimentos!G11 -> 0 | G19: =E19*F19 -> 0
A20: 2.1.2 | B20: Composição | C20: Fornecimento de Grupo Gerador Reserva | D20: Unid. | E20: 1 | F20: =Composições!J159+Fornecimentos!G11 -> 0 | G20: =E20*F20 -> 0
A21: 2.1.3 | B21: Composição | C21: Fornecimento e Instalação do Tanque de Combustível | D21: Unid. | E21: 6 | F21: =Composições!J191+Fornecimentos!G12 -> 0 | G21: =E21*F21 -> 0
A22: 2.2 | B22: Sistema de Acionamento | G22: =SUM(G23:G24) -> 0
A23: 2.2.1 | B23: Composição | C23: Fornecimento e Instalação dos CCM's para os Motores, 02 soft-starter | D23: Unid. | E23: 8 | F23: =Composições!J223+Fornecimentos!G13+(Fornecimentos!G14/8) -> 0 | G23: =F23*E23 -> 0
A24: 2.2.2 | B24: Composição | C24: Fornecimento e Instalação de Paineis de Operação | D24: Unid. | E24: 1 | F24: =Composições!J254+Fornecimentos!G15 -> 0 | G24: =F24*E24 -> 0
A25: 2.3 | B25: Sistema de Bombeamento | G25: =G26 -> 0
A26: 2.3.1 | B26: Composição | C26: Fornecimento e Instalação do Sistema de Bombeamento Flutuante | D26: Unid. | E26: 8 | F26: =Composições!J290+Fornecimentos!G16 -> 0 | G26: 0
A27: 2.4 | B27: Sistema de Iluminação e Combate a Incêndio | G27: =SUM(G28:G29) -> 0
A28: 2.4.1 | B28: Composição | C28: Fornecimento e Instalação dos Equipamentos de Detecção e Combate a Incêndio | D28: Unid. | E28: 1 | F28: =Composições!J321 -> 0 | G28: 0
A29: 2.4.2 | B29: Composição | C29: Fornecimento, Instalação, Montagem e Testes dos Equipamentos de Iluminação | D29: Unid. | E29: 1 | F29: =Composições!J358 -> 0 | G29: 0
A30: 2.5 | B30: Sistema de Aterramento | G30: =G31 -> 0
A31: 2.5 | B31: Composição | C31: Fornecimento e Instalação do Sistema de Aterramento | D31: Unid. | E31: 1 | F31: =Composições!J413 -> 0 | G31: 0
A32: 2.6 | B32: Comissionamento, Operação e Desmontagem do Sistema | G32: =G33 -> 0
A33: 2.6.1 | B33: Composição | C33: Comissionamento e Start-up | D33: Unid. | E33: 1 | F33: =Composições!J448 -> 0 | G33: 0
A34: 3 | B34: PROJETO EXECUTIVO | E34: Custo Total dos Serviços (R$) | G34: =SUM(G35:G35) -> 0
A35: 3.1 | B35: Composição | C35: Elaboração do Projeto Executivo | D35: Unid. | E35: 1 | F35: =Composições!J484 -> 0 | G35: =ROUND(F35*E35,2) -> 0
E36: TOTAL GERAL | G36: =G11+G17+G34 -> 0

Sheet Composições
A2: CODEVASF | D2: 1.1 | E2: COMPOSIÇÃO DE PREÇO UNITÁRIO
A3: OBRA | C3: Sistema de Captação Flutuante para o Perímetro de Irrigação Nilo Coelho | I3: DATA | J3: 2015-08-31
A4: SERVIÇO | C4: Administração Local | I4: UNIDADE: | J4: MÊS
A5: EQUIPAMENTO
A6: FONTE | B6: CÓDIGO | C6: DISCRIMINAÇÃO | D6: UNID. | E6: QUANT. | F6: PROD | G6: IMPROD | H6: P.UNIT. PROD | I6: P.UNIT. IMPR | J6: P.TOTAL
A7: CODEVASF | B7: TABELA VEÍCULOS | C7: VEÍCULO PICK-UP CABINE DUPLA 4X4 PARA A FISCALIZAÇÃO (163 CV) (SEM MOTORISTA) | D7: MÊS | E7: 1 | J7: =E7*H7 -> 0
C8: SUB-TOTAL | J8: =SUM(J7:J7) -> 0
A9: MATERIAL
C10: DISCRIMINAÇÃO | D10: UNID. | E10: QUANT. | I10: P.UNIT. | J10: P.TOTAL
C11: ENERGIA ELÉTRICA | D11: MÊS | E11: 1 | J11: =E11*I11 -> 0
C12: ÁGUA E ESGOTO | D12: MÊS | E12: 1 | J12: =E12*I12 -> 0
C13: TELEFONE | D13: MÊS | E13: 1 | J13: 0
C14: SUB-TOTAL | J14: =SUM(J11:J13) -> 0
A15: SERVIÇOS - COMPOSIÇÕES AUXILIARES
C16: DISCRIMINAÇÃO | D16: UNID. | E16: QUANT. | I16: P.UNIT. | J16: P.TOTAL
C18: SUB-TOTAL | J18: =SUM(J17:J17) -> 0
A19: MÃO DE OBRA
C20: DISCRIMINAÇÃO | D20: UNID. | E20: QUANT. | I20: P.UNIT. | J20: P.TOTAL
A21: CODEVASF | B21: P1 | C21: ENGENHEIRO - PROFISSIONAL PLENO (ELETRICISTA) | D21: MÊS | E21: 1 | J21: =E21*I21 -> 0
A22: CODEVASF | B22: P1 | C22: ENGENHEIRO - PROFISSIONAL PLENO (MECÂNICO) | D22: MÊS | E22: 1 | J22: =E22*I22 -> 0
A23: CODEVASF | B23: A1 | C23: ASSISTENTE ADMINISTRATIVO | D23: MÊS | E23: 1 | J23: =E23*I23 -> 0
A24: CODEVASF | B24: A4 | C24: VIGIA | D24: MÊS | E24: 3 | J24: 0
A25: CODEVASF | B25: A4 | C25: SERVIÇOS GERAIS | D25: MÊS | E25: 1 | J25: 0
G26: ENCARGOS SOCIAIS | I26: ='ENCARGOS SOCIAIS'!G45 -> 0.5008 | J26: =(SUM(J21:J25)*I26) -> 0
C27: SUB-TOTAL | J27: =(SUM(J21:J25)+J26) -> 0
C28: PRODUÇÃO DA EQUIPE | D28: 1 | E28: CUSTO TOTAL | J28: =J8+J14+J18+J27 -> 0
G29: BDI (serviços) | I29: ='BDI''s'!C34 -> 0.2644 | J29: =J28*I29 -> 0
G30: DBI (Fornecimentos) | I30: ='BDI''s'!C86 -> 0.16 | J30: -
A31: TOTAL DO SERVIÇO | J31: =J28+J29 -> 0
A34: CODEVASF | D34: 1.2 | E34: COMPOSIÇÃO DE PREÇO UNITÁRIO
A35: OBRA | C35: Sistema de Captação Flutuante para o Perímetro de Irrigação Nilo Coelho | I35: DATA | J35: 2015-08-31
A36: SERVIÇO | C36: Mobilização | I36: UNIDADE: | J36: Unid.
A37: EQUIPAMENTO
A38: FONTE | B38: CÓDIGO | C38: DISCRIMINAÇÃO | D38: UNID. | E38: QUANT. | F38: PROD | G38: IMPROD | H38: P.UNIT. PROD | I38: P.UNIT. IMPR | J38: P.TOTAL
A39: SINAPI | B39: 1143 | C39: CAMINHAO TRUCADO (3 EIXOS) COM CARROCERIA DE MADEIRA FIXA, CAPACIDADE DE *10 A 12* T (LOCACAO SEM MOTORISTA) | D39: H | E39: 16 | J39: =ROUND(H39*E39,2) -> 0
A40: SINAPI | B40: 3359 | C40: GUINDASTE TIPO MUNCK CAP * 8T * MONTADO EM CAMINHAO CARROCERIA OU EQUIV | D40: H | E40: 16 | J40: =ROUND(H40*E40,2) -> 0
C41: SUB-TOTAL | J41: =SUM(J39:J40) -> 0
A42: MATERIAL
C43: DISCRIMINAÇÃO | D43: UNID. | E43: QUANT. | I43: P.UNIT. | J43: P.TOTAL
B44: Cotação | C44: Passagens Aereas | D44: unid. | E44: 9 | J44: =E44*I44 -> 0
C45: SUB-TOTAL | J45: =SUM(J44:J44) -> 0
A46: SERVIÇOS - COMPOSIÇÕES AUXILIARES
C47: DISCRIMINAÇÃO | D47: UNID. | E47: QUANT. | I47: P.UNIT. | J47: P.TOTAL
C49: SUB-TOTAL | J49: =SUM(J48:J48) -> 0
A50: MÃO DE OBRA
C51: DISCRIMINAÇÃO | D51: UNID. | E51: QUANT. | I51: P.UNIT. | J51: P.TOTAL
A52: SINAPI | B52: 248 | C52: AJUDANTE GERAL | D52: H | E52: 16 | J52: =ROUND(I52*E52,2) -> 0
A53: SINAPI | B53: 4093 | C53: MOTORISTA DE CAMINHAO | D53: H | E53: 16 | J53: =ROUND(I53*E53,2) -> 0
G54: ENCARGOS SOCIAIS | I54: 0 | J54: =(SUM(J52:J53)*I54) -> 0
C55: SUB-TOTAL | J55: =(SUM(J52:J53)+J54) -> 0
C56: PRODUÇÃO DA EQUIPE | D56: 1 | E56: CUSTO TOTAL | J56: =J41+J45+J49+J55 -> 0
G57: BDI (serviços) | I57: ='BDI''s'!C34 -> 0.2644 | J57: =J56*I57 -> 0
G58: DBI (Fornecimentos) | I58: ='BDI''s'!C86 -> 0.16 | J58: -
A59: TOTAL DO SERVIÇO | J59: =J56+J57 -> 0
A67: CODEVASF | D67: 1.3 | E67: COMPOSIÇÃO DE PREÇO UNITÁRIO
A68: OBRA | C68: Sistema de Captação Flutuante para o Perímetro de Irrigação Nilo Coelho | I68: DATA | J68: 2015-08-31
A69: SERVIÇO | C69: Desmobilização | I69: UNIDADE: | J69: Unid.
A70: EQUIPAMENTO
A71: FONTE | B71: CÓDIGO | C71: DISCRIMINAÇÃO | D71: UNID. | E71: QUANT. | F71: PROD | G71: IMPROD | H71: P.UNIT. PROD | I71: P.UNIT. IMPR | J71: P.TOTAL
A72: SINAPI | B72: 1143 | C72: CAMINHAO TRUCADO (3 EIXOS) COM CARROCERIA DE MADEIRA FIXA, CAPACIDADE DE *10 A 12* T (LOCACAO SEM MOTORISTA) | D72: H | E72: 16 | J72: =ROUND(H72*E72,2) -> 0
A73: SINAPI | B73: 3359 | C73: GUINDASTE TIPO MUNCK CAP * 8T * MONTADO EM CAMINHAO CARROCERIA OU EQUIV | D73: H | E73: 16 | J73: =ROUND(H73*E73,2) -> 0
C74: SUB-TOTAL | J74: =SUM(J72:J73) -> 0
A75: MATERIAL
C76: DISCRIMINAÇÃO | D76: UNID. | E76: QUANT. | I76: P.UNIT. | J76: P.TOTAL
B77: Cotação | C77: Passagens Aereas | D77: unid. | E77: 9 | J77: =E77*I77 -> 0
C78: SUB-TOTAL | J78: =SUM(J77:J77) -> 0
A79: SERVIÇOS - COMPOSIÇÕES AUXILIARES
C80: DISCRIMINAÇÃO | D80: UNID. | E80: QUANT. | I80: P.UNIT. | J80: P.TOTAL
C82: SUB-TOTAL | J82: =SUM(J81:J81) -> 0
A83: MÃO DE OBRA
C84: DISCRIMINAÇÃO | D84: UNID. | E84: QUANT. | I84: P.UNIT. | J84: P.TOTAL
A85: SINAPI | B85: 248 | C85: AJUDANTE GERAL | D85: H | E85: 16 | J85: =ROUND(I85*E85,2) -> 0
A86: SINAPI | B86: 4093 | C86: MOTORISTA DE CAMINHAO | D86: H | E86: 16 | J86: =ROUND(I86*E86,2) -> 0
G87: ENCARGOS SOCIAIS | I87: 0 | J87: =(SUM(J85:J86)*I87) -> 0
C88: SUB-TOTAL | J88: =(SUM(J85:J86)+J87) -> 0
C89: PRODUÇÃO DA EQUIPE | D89: 1 | E89: CUSTO TOTAL | J89: =J74+J78+J82+J88 -> 0
G90: BDI (serviços) | I90: ='BDI''s'!C34 -> 0.2644 | J90: =J89*I90 -> 0
G91: DBI (Fornecimentos) | I91: ='BDI''s'!C86 -> 0.16 | J91: -
A92: TOTAL DO SERVIÇO | J92: =J89+J90 -> 0
A100: CODEVASF | D100: 1.4 | E100: COMPOSIÇÃO DE PREÇO UNITÁRIO
A101: OBRA | C101: Sistema de Captação Flutuante para o Perímetro de Irrigação Nilo Coelho | I101: DATA | J101: 2015-08-31
A102: SERVIÇO | C102: Instalação de Grupo Gerador (incluindo Manutenção, Montagem e Desmontagem) | I102: UNIDADE: | J102: Unid.
A103: EQUIPAMENTO
A104: FONTE | B104: CÓDIGO | C104: DISCRIMINAÇÃO | D104: UNID. | E104: QUANT. | F104: PROD | G104: IMPROD | H104: P.UNIT. PROD | I104: P.UNIT. IMPR | J104: P.TOTAL
A105: SINAPI | B105: 3367 | C105: GUINDASTE AUTO-PROPELIDO, SOBRE PNEUS, C/ LANCA TELESCOPICA CAP * 15T * (INCLUÍDO MANUTENCAO/OPERACAO) | D105: HORA | E105: 8 | J105: =ROUND(H105*E105,2) -> 0
A106: SINAPI | B106: 1286 | C106: CAMINHAO CAVALO MECANICO C/ CARRETA PRANCHA CAP 20T (INCLUÍDO MANUT/OPERACAO) | D106: HORA | E106: 8 | J106: =ROUND(H106*E106,2) -> 0
C107: SUB-TOTAL | J107: =SUM(J105:J106) -> 0
A108: MATERIAL
C109: DISCRIMINAÇÃO | D109: UNID. | E109: QUANT. | I109: P.UNIT. | J109: P.TOTAL
A110: SINAPI | B110: 999 | C110: Cabos para Interligar o Gerador até o Painel | D110: m | E110: 270 | J110: =E110*I110 -> 0
A111: SINAPI | B111: 11876 | C111: Terminal para os Cabos | D111: Unid. | E111: 18 | J111: =E111*I111 -> 0
C112: SUB-TOTAL | J112: =SUM(J110:J111) -> 0
A113: SERVIÇOS - COMPOSIÇÕES AUXILIARES
C114: DISCRIMINAÇÃO | D114: UNID. | E114: QUANT. | I114: P.UNIT. | J114: P.TOTAL
C116: SUB-TOTAL | J116: =J115 -> 0
A117: MÃO DE OBRA
C118: DISCRIMINAÇÃO | D118: UNID. | E118: QUANT. | I118: P.UNIT. | J118: P.TOTAL
A119: 26 | B119: T1 | C119: TÉCNICO - PROFISSIONAL PLENO (ELETRICISTA) | D119: HORA | E119: 20 | J119: =E119*I119 -> 0
A120: CODEVASF | B120: T3 | C120: TÉCNICO AUXILIAR (ELETRICISTA) | D120: HORA | E120: 26 | J120: 0
A121: CODEVASF | B121: T1 | C121: TÉCNICO - PROFISSIONAL PLENO (MECÂNICA) | D121: HORA | E121: 20 | J121: 0
A122: CODEVASF | B122: T3 | C122: TÉCNICO AUXILIAR (MECÂNICA) | D122: HORA | E122: 26 | J122: 0
G123: ENCARGOS SOCIAIS | I123: ='ENCARGOS SOCIAIS'!F45 -> 0.8975 | J123: =(SUM(J119:J122)*I123) -> 0
C124: SUB-TOTAL | J124: =(SUM(J119:J122)+J123) -> 0
C125: PRODUÇÃO DA EQUIPE | D125: 1 | E125: CUSTO TOTAL | J125: =J107+J112+J116+J124 -> 0
G126: BDI (serviços) | I126: ='BDI''s'!C34 -> 0.2644 | J126: =(J107+J116+J124)*I126 -> 0
G127: DBI (Fornecimentos) | I127: ='BDI''s'!C86 -> 0.16 | J127: =J112*I127 -> 0
A128: TOTAL DO SERVIÇO | J128: =J125+J126+J127 -> 0
A129: Observação: foi aplicado BDI diferenciado sobre os materiais por representar parcela considerável sobre o valor total do serviço.
A134: CODEVASF | D134: 1.4 | E134: COMPOSIÇÃO DE PREÇO UNITÁRIO
A135: OBRA | C135: Sistema de Captação Flutuante para o Perímetro de Irrigação Nilo Coelho | I135: DATA | J135: 2015-08-31
A136: SERVIÇO | C136: Instalação de Grupo Gerador Reserva (incluindo Manutenção, Montagem e Desmontagem) | I136: UNIDADE: | J136: Unid.
A137: EQUIPAMENTO
A138: FONTE | B138: CÓDIGO | C138: DISCRIMINAÇÃO | D138: UNID. | E138: QUANT. | F138: PROD | G138: IMPROD | H138: P.UNIT. PROD | I138: P.UNIT. IMPR | J138: P.TOTAL
A139: SINAPI | B139: 3367 | C139: GUINDASTE AUTO-PROPELIDO, SOBRE PNEUS, C/ LANCA TELESCOPICA CAP * 15T * (INCLUÍDO MANUTENCAO/OPERACAO) | D139: HORA | E139: 4 | J139: =ROUND(H139*E139,2) -> 0
A140: SINAPI | B140: 1286 | C140: CAMINHAO CAVALO MECANICO C/ CARRETA PRANCHA CAP 20T (INCLUÍDO MANUT/OPERACAO) | D140: HORA | E140: 4 | J140: =ROUND(H140*E140,2) -> 0
C141: SUB-TOTAL | J141: =SUM(J139:J140) -> 0
A142: MATERIAL
C143: DISCRIMINAÇÃO | D143: UNID. | E143: QUANT. | I143: P.UNIT. | J143: P.TOTAL
C145: SUB-TOTAL | J145: =SUM(J144:J144) -> 0
A146: SERVIÇOS - COMPOSIÇÕES AUXILIARES
C147: DISCRIMINAÇÃO | D147: UNID. | E147: QUANT. | I147: P.UNIT. | J147: P.TOTAL
C149: SUB-TOTAL | J149: =SUM(J148:J148) -> 0
A150: MÃO DE OBRA
C151: DISCRIMINAÇÃO | D151: UNID. | E151: QUANT. | I151: P.UNIT. | J151: P.TOTAL
A152: CODEVASF | B152: T1 | C152: TÉCNICO - PROFISSIONAL PLENO (ELETRICISTA) | D152: HORA | E152: 8 | J152: =E152*I152 -> 0
A153: CODEVASF | B153: T1 | C153: TÉCNICO - PROFISSIONAL PLENO (MECÂNICA) | D153: HORA | E153: 8 | J153: 0
G154: ENCARGOS SOCIAIS | I154: ='ENCARGOS SOCIAIS'!F45 -> 0.8975 | J154: =(SUM(J152:J153)*I154) -> 0
C155: SUB-TOTAL | J155: =(SUM(J152:J153)+J154) -> 0
C156: PRODUÇÃO DA EQUIPE | D156: 1 | E156: CUSTO TOTAL | J156: =J141+J145+J149+J155 -> 0
G157: BDI (serviços) | I157: ='BDI''s'!C34 -> 0.2644 | J157: =J156*I157 -> 0
G158: DBI (Fornecimentos) | I158: ='BDI''s'!C86 -> 0.16 | J158: -
A159: TOTAL DO SERVIÇO | J159: =J156+J157 -> 0
A166: CODEVASF | D166: 1.5 | E166: COMPOSIÇÃO DE PREÇO UNITÁRIO
A167: OBRA | C167: Sistema de Captação Flutuante para o Perímetro de Irrigação Nilo Coelho | I167: DATA | J167: 2015-08-31
A168: SERVIÇO | C168: Instalação de Tanque de Combustível | I168: UNIDADE: | J168: Unid.
A169: EQUIPAMENTO
A170: FONTE | B170: CÓDIGO | C170: DISCRIMINAÇÃO | D170: UNID. | E170: QUANT. | F170: PROD | G170: IMPROD | H170: P.UNIT. PROD | I170: P.UNIT. IMPR | J170: P.TOTAL
A171: SINAPI | B171: 3367 | C171: GUINDASTE AUTO-PROPELIDO, SOBRE PNEUS, C/ LANCA TELESCOPICA CAP * 15T * (INCLUÍDO MANUTENCAO/OPERACAO) | D171: HORA | E171: 8 | J171: =ROUND(H171*E171,2) -> 0
A172: SINAPI | B172: 1286 | C172: CAMINHAO CAVALO MECANICO C/ CARRETA PRANCHA CAP 20T (INCLUÍDO MANUT/OPERACAO) | D172: HORA | E172: 8 | J172: =ROUND(H172*E172,2) -> 0
C173: SUB-TOTAL | J173: =SUM(J171:J172) -> 0
A174: MATERIAL
C175: DISCRIMINAÇÃO | D175: UNID. | E175: QUANT. | I175: P.UNIT. | J175: P.TOTAL
C177: SUB-TOTAL | J177: =SUM(J176:J176) -> 0
A178: SERVIÇOS - COMPOSIÇÕES AUXILIARES
C179: DISCRIMINAÇÃO | D179: UNID. | E179: QUANT. | I179: P.UNIT. | J179: P.TOTAL
C181: SUB-TOTAL | J181: =SUM(J180:J180) -> 0
A182: MÃO DE OBRA
C183: DISCRIMINAÇÃO | D183: UNID. | E183: QUANT. | I183: P.UNIT. | J183: P.TOTAL
A184: CODEVASF | B184: T1 | C184: TÉCNICO - PROFISSIONAL PLENO (ELETRICISTA) | D184: HORA | E184: 8 | J184: =E184*I184 -> 0
A185: CODEVASF | B185: T1 | C185: TÉCNICO - PROFISSIONAL PLENO (MECÂNICA) | D185: HORA | E185: 8 | J185: 0
G186: ENCARGOS SOCIAIS | I186: ='ENCARGOS SOCIAIS'!F45 -> 0.8975 | J186: =(SUM(J184:J185)*I186) -> 0
C187: SUB-TOTAL | J187: =(SUM(J184:J185)+J186) -> 0
C188: PRODUÇÃO DA EQUIPE | D188: 1 | E188: CUSTO TOTAL | J188: =J173+J177+J181+J187 -> 0
G189: BDI (serviços) | I189: ='BDI''s'!C34 -> 0.2644 | J189: =J188*I189 -> 0
G190: DBI (Fornecimentos) | I190: ='BDI''s'!C86 -> 0.16 | J190: -
A191: TOTAL DO SERVIÇO | J191: =J188+J189 -> 0
A199: CODEVASF | D199: 1.6 | E199: COMPOSIÇÃO DE PREÇO UNITÁRIO
A200: OBRA | C200: Sistema de Captação Flutuante para o Perímetro de Irrigação Nilo Coelho | I200: DATA | J200: 2015-08-31
A201: SERVIÇO | C201: Instalação dos CCM's para os Motores | I201: UNIDADE: | J201: Unid.
A202: EQUIPAMENTO
A203: FONTE | B203: CÓDIGO | C203: DISCRIMINAÇÃO | D203: UNID. | E203: QUANT. | F203: PROD | G203: IMPROD | H203: P.UNIT. PROD | I203: P.UNIT. IMPR | J203: P.TOTAL
C205: SUB-TOTAL | J205: =SUM(J204:J204) -> 0
A206: MATERIAL
C207: DISCRIMINAÇÃO | D207: UNID. | E207: QUANT. | I207: P.UNIT. | J207: P.TOTAL
A208: SINAPI | B208: 1017 | C208: CABO DE COBRE ISOLAMENTO ANTI-CHAMA 0,6/1KV 120MM2 (1 CONDUTOR) TP SINTENAX PIRELLI OU EQUIV | D208: m | E208: 5400 | J208: =E208*I208 -> 0
A209: SINAPI | B209: 1581 | C209: TERMINAL A COMPRESSAO EM COBRE ESTANHADO P/ CABO 120 MM2 | D209: Unid. | E209: 36 | J209: =ROUND(I209*E209,2) -> 0
C210: SUB-TOTAL | J210: =SUM(J208:J209) -> 0
A211: MÃO DE OBRA
C212: DISCRIMINAÇÃO | D212: UNID. | E212: QUANT. | I212: P.UNIT. | J212: P.TOTAL
A213: CODEVASF | B213: P1 | C213: ENGENHEIRO - PROFISSIONAL PLENO (CIVIL) | D213: H | E213: 4 | J213: =E213*I213 -> 0
A214: CODEVASF | B214: T1 | C214: TÉCNICO - PROFISSIONAL PLENO (CIVIL) | D214: H | E214: 8 | J214: =E214*I214 -> 0
A215: CODEVASF | B215: T3 | C215: TÉCNICO AUXILIAR (CIVIL) | D215: H | E215: 8 | J215: 0
A216: CODEVASF | B216: T1 | C216: TÉCNICO - PROFISSIONAL PLENO (ELETRICISTA) | D216: H | E216: 16 | J216: 0
A217: CODEVASF | B217: T3 | C217: TÉCNICO AUXILIAR (ELETRICISTA) | D217: H | E217: 16 | J217: 0
G218: ENCARGOS SOCIAIS | I218: ='ENCARGOS SOCIAIS'!F45 -> 0.8975 | J218: =(SUM(J213:J217)*I218) -> 0
C219: SUB-TOTAL | J219: =(SUM(J213:J217)+J218) -> 0
C220: PRODUÇÃO DA EQUIPE | D220: 1 | E220: CUSTO TOTAL | J220: =J205+J210+J219 -> 0
G221: BDI (serviços) | I221: ='BDI''s'!C34 -> 0.2644 | J221: =(J219+J205)*I221 -> 0
G222: DBI (Fornecimentos) | I222: ='BDI''s'!C86 -> 0.16 | J222: =J210*I222 -> 0
A223: TOTAL DO SERVIÇO | J223: =J220+J221+J222 -> 0
A224: Observação: foi aplicado BDI diferenciado sobre os materiais por representar parcela considerável sobre o valor total do serviço.
A233: CODEVASF | D233: 1.7 | E233: COMPOSIÇÃO DE PREÇO UNITÁRIO
A234: OBRA | C234: Sistema de Captação Flutuante para o Perímetro de Irrigação Nilo Coelho | I234: DATA | J234: 2015-08-31
A235: SERVIÇO | C235: Instalação dos Paineis de Operação | I235: UNIDADE: | J235: Unid.
A236: EQUIPAMENTO
A237: FONTE | B237: CÓDIGO | C237: DISCRIMINAÇÃO | D237: UNID. | E237: QUANT. | F237: PROD | G237: IMPROD | H237: P.UNIT. PROD | I237: P.UNIT. IMPR | J237: P.TOTAL
C239: SUB-TOTAL | J239: =SUM(J238:J238) -> 0
A240: MATERIAL
C241: DISCRIMINAÇÃO | D241: UNID. | E241: QUANT. | I241: P.UNIT. | J241: P.TOTAL
A242: SINAPI | B242: 993 | C242: CABO DE COBRE ISOLAMENTO ANTI-CHAMA 0,6/1KV 1,5MM2 (1 CONDUTOR) TP SINTENAX PIRELLI OU EQUIV, PARA INTERLIGAÇÃO DOS EQUIPAMENTOS, INCLUSIVE INSTRUMENTAÇÃO | D242: M | E242: 950 | J242: =ROUND(I242*E242,2) -> 0
C243: SUB-TOTAL | J243: =SUM(J242:J242) -> 0
A244: MÃO DE OBRA
C245: DISCRIMINAÇÃO | D245: UNID. | E245: QUANT. | I245: P.UNIT. | J245: P.TOTAL
A246: CODEVASF | B246: P1 | C246: ENGENHEIRO - PROFISSIONAL PLENO (ELETRÔNICA) | D246: HORA | E246: 40 | J246: =E246*I246 -> 0
A247: CODEVASF | B247: T1 | C247: TÉCNICO - PROFISSIONAL PLENO (ELETRÔNICA) | D247: HORA | E247: 80 | J247: =E247*I247 -> 0
A248: CODEVASF | B248: T1 | C248: TÉCNICO - PROFISSIONAL PLENO (ELETRICISTA) | D248: HORA | E248: 80 | J248: 0
G249: ENCARGOS SOCIAIS | I249: ='ENCARGOS SOCIAIS'!F45 -> 0.8975 | J249: =(SUM(J246:J248)*I249) -> 0
C250: SUB-TOTAL | J250: =(SUM(J246:J248)+J249) -> 0
C251: PRODUÇÃO DA EQUIPE | D251: 1 | E251: CUSTO TOTAL | J251: =J239+J243+J250 -> 0
G252: BDI (serviços) | I252: ='BDI''s'!C34 -> 0.2644 | J252: =J251*I252 -> 0
... 155 more rows

Sheet Fornecimentos
A6: Fornecimento de Sistema de Captação Flutuante, Sistema de Acionamento de Motores de Indução Trifásicos e Grupo Gerador necessário para o Perímetro Irrigado Senador Nilo Coelho
A7: PLANILHA ORÇAMENTÁRIA DE FORNECIMENTOS | F7: VALOR TOTAL (R$)
F8: =G17 -> 0
A9: ITEM | B9: CÓDIGO | C9: DISCRIMINAÇÃO | D9: UNID. | E9: QUANT. | F9: PREÇO (R$)
F10: UNITÁRIO | G10: TOTAL
A11: 1 | B11: Cotação | C11: Aluguel de Gerador | D11: mês | E11: 4 | G11: =E11*F11 -> 0
A12: 2 | B12: cotação | C12: Aluguel de Tanque de Combustível de 10.000 Litros | D12: mês | E12: 4 | G12: =E12*F12 -> 0
A13: 3 | B13: Cotação | C13: Painel com Três (03) Colunas, Sendo Uma com Disjunção, e as Outras com Dois (02) Softstarters, IHM, MMGE, Protetores de Surto e Material de Instalação,Conforme Especificações Técnicas. | D13: Unid. | E13: 1 | G13: 0
A14: 4 | B14: cotação | C14: Flutuadores para apoio e sustentação dos cabos elétricos (sobre a lamina d'água até sistema de geração elétrico), com bandejas e sistema de ancoragem. | D14: cj | E14: 45 | G14: 0
A15: 5 | B15: Cotação | C15: Painel de Acionamento - Captação, Conforme Especificações Técnicas | D15: Unid. | E15: 1 | G15: 0
A16: 6 | B16: Cotação | C16: Motobamba abrigada sobre estrutura flutuante e seus acessórios | D16: cj | E16: 1 | G16: 0
F17: Total | G17: =SUM(G11:G16) -> 0

Sheet BDI's
B7: DETALHAMENTO DO BDI - SERVIÇOS
B8: =#REF! -> 
B9: EXECUÇÃO DAS OBRAS E SERVIÇOS RELATIVOS À CONSTRUÇÃO DO SISTEMA SIMPLIFICADO DE ABASTECIMENTO D'ÁGUA DAS LOCALIDADES MURICY AMADOR, SÍTIO NOVO, SÍTIO RIACHO, SÍTIO PAI E FILHO E SÍTIO FAVELA, PERTENCENTES À ZONA RURAL DO MUNICÍPIO PERNAMBUCANO DE PETROLINA, EM ÁREA DE ATUAÇÃO DA CODEVASF/3ªSR.
B10: CD: | C10: 100000
B11: Item | C11: Descrição dos Serviços | D11: % | E11: % | F11: Valor | G11: BDI
D12: PV | E12: CD | F12: (R$) | G12: (R$)
B13: 1 | C13: ADMINISTRAÇÃO CENTRAL ( AC ) | E13: 4 | G13: =C10*E13/100 -> 4000
B15: 2 | C15: IMPOSTOS E TAXAS ( I ) | D15: =SUM(D16:D19) -> 9.65 | E15: =ROUND(D15,2) -> 9.65 | G15: =C10*E15/100 -> 9650
B16: 3.1 | C16: ISS | D16: 4 | G16: =C10*D16/100 -> 4000
B17: 3.2 | C17: PIS | D17: 0.65 | G17: =C10*D17/100 -> 650
B18: 3.3 | C18: CPRB | D18: 2 | G18: =C10*D18/100 -> 2000
B19: 3.3 | C19: Cofins | D19: 3 | G19: =C10*D19/100 -> 3000
B21: 3 | C21: TAXA DE RISCO ( R ) | E21: 1 | G21: =C10*E21/100 -> 1000
B23: 4 | C23: TAXA DE SEGUROS ( S ) | E23: 0.2 | G23: =C10*E23/100 -> 200
B25: 5 | C25: GARANTIAS ( G ) | E25: 0.2 | G25: =C10*E25/100 -> 200
B27: 4 | C27: DESPESAS FINANCEIRAS ( DF ) | E27: 1.01 | G27: =C10*E27/100 -> 1010
B29: 5 | C29: LUCRO ( L ) | E29: 7.3 | G29: =C10*E29/100 -> 7300
G31: =C10*C34% -> 264.4
E32: PV = | G32: =C10*(1+C34%) -> 100264.4
B33: BDI = | C33: =ROUND((((1+D36+D40 + D42 + D44)*(1+D46)*(1+D48)/(1-D38))-1)*100,4) -> 26.44 | D33: calculado
B34: BDI = | C34: =C33/100 -> 0.2644 | D34: adotado
C36: AC = | D36: =E13/100 -> 0.04 | F36: Administração Central
C38: I = | D38: =D15/100 -> 0.0965 | F38: Impostos
C40: R = | D40: =E21/100 -> 0.01 | F40: Risco
C42: S = | D42: =E23/100 -> 0.002 | F42: Seguros
C44: G = | D44: =E25/100 -> 0.002 | F44: Garantias
C46: DF = | D46: =E27/100 -> 0.0101 | F46: Despesas financeiras
C48: L = | D48: =E29/100 -> 0.073 | F48: Lucro
B50: BDI = ((1+AC+S+R+G)(1+DF)(1+L)/(1-I))-1
B51: Acórdão nº 2369/2011
B57: DETALHAMENTO DO BDI - MATERIAIS
B58: =#REF! -> 
B59: EXECUÇÃO DAS OBRAS E SERVIÇOS RELATIVOS À CONSTRUÇÃO DO SISTEMA SIMPLIFICADO DE ABASTECIMENTO D'ÁGUA DAS LOCALIDADES MURICY AMADOR, SÍTIO NOVO, SÍTIO RIACHO, SÍTIO PAI E FILHO E SÍTIO FAVELA, PERTENCENTES À ZONA RURAL DO MUNICÍPIO PERNAMBUCANO DE PETROLINA, EM ÁREA DE ATUAÇÃO DA CODEVASF/3ªSR.
B60: CD: | C60: 100000
B62: Item | C62: Descrição dos Serviços | D62: % | E62: % | F62: Valor | G62: BDI
D63: PV | E63: CD | F63: (R$) | G63: (R$)
B65: 1 | C65: ADMINISTRAÇÃO CENTRAL ( AC ) | E65: 3.9 | G65: =C60*E65/100 -> 3900
B67: 2 | C67: IMPOSTOS E TAXAS ( I ) | D67: =SUM(D68:D71) -> 3.65 | E67: =ROUND(D67,2) -> 3.65 | G67: =C60*E67/100 -> 3650
B68: 2.1 | C68: ISS | D68: 0 | G68: =C60*D68/100 -> 0
B69: 2.2 | C69: PIS | D69: 0.65 | G69: =C60*D69/100 -> 650
B70: 2.3 | C70: CPRB | D70: 0 | G70: =C60*D70/100 -> 0
B71: 2.4 | C71: COFINS | D71: 3 | G71: =C60*D71/100 -> 3000
B73: 3 | C73: TAXA DE RISCO ( R ) | E73: 0.9 | G73: =C60*E73/100 -> 900
B75: 4 | C75: TAXA DE SEGUROS ( S ) | E75: 0.25 | G75: =C60*E75/100 -> 250
B77: 5 | C77: GARANTIAS ( G ) | E77: 0.25 | G77: =C60*E77/100 -> 250
B79: 6 | C79: DESPESAS FINANCEIRAS ( DF ) | E79: 0.9 | G79: =C60*E79/100 -> 900
B81: 7 | C81: LUCRO ( L ) | E81: 5.19 | G81: =C60*E81/100 -> 5190
B83: BDI CALCULADO | G83: =C60*C86% -> 160
E84: PV = | G84: =C60+G83 -> 100160
B85: BDI = | C85: =ROUND((((1+D88+D92 + D94 + D96)*(1+D98)*(1+D100)/(1-D90))-1)*100,4) -> 16 | D85: calculado
B86: BDI = | C86: =C85/100 -> 0.16 | D86: adotado
C88: AC = | D88: =E65/100 -> 0.039 | F88: Administração Central
C90: I = | D90: =D67/100 -> 0.0365 | F90: Impostos
C92: R = | D92: =E73/100 -> 0.009 | F92: Risco
C94: S = | D94: =E75/100 -> 0.0025 | F94: Seguros
C96: G = | D96: =E77/100 -> 0.0025 | F96: Garantias
C98: DF = | D98: =E79/100 -> 0.009 | F98: Despesas financeiras
C100: L = | D100: =E81/100 -> 0.0519 | F100: Lucro
B101: BDI = ((1+AC+S+R+G)(1+DF)(1+L)/(1-I))-1
B102: Acórdão nº 2369/2011

Sheet Adutora Bruta de Recalque (hidden)
A8: MEMÓRIA DE CÁLCULOS PARA ADUTORA DE ÁGUA BRUTA POR PRESSÃO
A9: EXECUÇÃO DAS OBRAS E SERVIÇOS RELATIVOS À CONSTRUÇÃO DO SISTEMA SIMPLIFICADO DE ABASTECIMENTO D'ÁGUA DAS LOCALIDADES MURICY AMADOR, SÍTIO NOVO, SÍTIO RIACHO, SÍTIO PAI E FILHO E SÍTIO FAVELA, PERTENCENTES À ZONA RURAL DO MUNICÍPIO PERNAMBUCANO DE PETROLINA, EM ÁREA DE ATUAÇÃO DA CODEVASF/3ªSR.
A10: LOCALIDADE MURICY AMADOR/PETROLINA
A11: DADOS BÁSICOS
A12: Tx perc. Consumo | C12: ='Rede de Distribuição'!D4 -> 120 | D12: litros/hab/dia
A13: População em final de projeto | C13: ='Rede de Distribuição'!M4 -> 350 | D13: habitantes
A14: Coeficiente de cons. Max diário (K1) | C14: ='Rede de Distribuição'!D7 -> 1.2
A15: N° horas funcionamento | C15: ='Rede de Distribuição'!M10 -> 12 | D15: horas
A17: Consumo diário p/ final do plano | C17: Cd= | D17: =C12*C13 -> 42000 | E17: litros/dia
A19: CALCULO DE VOLUME DO RESERVATÓRIO
A20: VD = Cd x K1 | C20: VD= | D20: =D17*C14 -> 50400 | E20: litros
A21: VR = 1/3 x Qmd | C21: VR= | D21: =D20/3000 -> 16.8 | E21: m³ | I21: =C12*C13*C14/12/60/60 -> 1.167
A23: VAZÃO MÁXIMA DIÁRIA ( 20 anos) | I23: =I21*3.6 -> 4.201
A24: Qmd = pop x q x K1/ 3.600 x h | C24: =D17*C14/(3600*C15) -> 1.167 | D24: l/s
C25: =C24/1000 -> 0.001167 | D25: m³/s
C26: =C25*3600 -> 4.201 | D26: m³/h
A28: DIMENSIONAMENTO DO SISTEMA DE RECALQUE
A30: Diâmetro econômico ABNT
A31: d= 1,30 x (h/24)0,25 x Q0,5 | C31: d= | D31: =1.3*(C15/24)^0.25*C25^0.5 -> 0.0373 | E31: m
C32: d= | D32: =D31*1000 -> 37.3 | E32: mm
H33: DN | I33: DE | J33: e | K33: DI
A34: Diâmetro comercial adotado | C34: =IF(D78<60,"PVC Classe 12",IF(D78>75,"PVC Classe 20","PVC Classe 15")) -> PVC Classe 12 | G34: PVC 12 JEI DN 50 | H34: 50 | I34: 60 | J34: 2.7 | K34: =I34-2*J34 -> 54.6
A35: Diâmetro nominal | C35: DN= | D35: =IF(D36=60,50,IF(D36=85,75,IF(D36=110,100,0))) -> 50 | E35: mm | G35: PVC 12 JEI DN 75 | H35: 75 | I35: 85 | J35: 3.9 | K35: =I35-2*J35 -> 77.2
A36: Diâmetro da tubulação | C36: DE= | D36: =IF(D32<50,I34,IF(D32>75,I36,I35)) -> 60 | E36: mm | G36: PVC 12 JEI DN 100 | H36: 100 | I36: 110 | J36: 5 | K36: 100
A37: Espessura da tubulação | C37: e= | D37: 2.7 | E37: mm
A38: Área da secção | G38: PVC 15 JEI DN 50 | H38: 50 | I38: 60 | J38: 3.3 | K38: 53.4
A39: S= ╥ x di² / 4 | C39: S= | D39: =PI()*((D36-2*D37)/1000)^2/4 -> 0.002341 | E39: m² | G39: PVC 15 JEI DN 75 | H39: 75 | I39: 85 | J39: 4.7 | K39: 75.6
G40: PVC 15 JEI DN 100 | H40: 100 | I40: 110 | J40: 6.1 | K40: 97.8
A41: Velocidade
A42: V= Q / S | C42: V= | D42: =C25/D39 -> 0.4985 | E42: m/s | G42: PVC 20 JEI DN 50 | H42: 50 | I42: 60 | J42: 4.3 | K42: 51.4
G43: PVC 20 JEI DN 75 | H43: 75 | I43: 85 | J43: 6.1 | K43: 72.8
A44: Perda de carga unitária | G44: PVC 20 JEI DN 100 | H44: 100 | I44: 110 | J44: 7.8 | K44: 94.4
A45: J = 10,643 x Q1,852 x C-1,852 x D-4,87 | C45: J= | D45: =10.643*C25^1.852*140^-1.852*(D35/1000)^-4.87 -> 0.00905 | E45: m/m
A46: C = 140 - PVC | G46: PVC DEFOFO JE 1 MPA DN 100 | H46: 100 | I46: 118 | J46: 4.8 | K46: =I46-2*J46 -> 108.4
G47: PVC DEFOFO JE 1 MPA DN 150 | H47: 150 | I47: 170 | J47: 6.8 | K47: 156.4
A48: Perda de carga total | G48: PVC DEFOFO JE 1 MPA DN 200 | H48: 200 | I48: 222 | J48: 8.9 | K48: 204.2
A49: Comprimento da adutora | D49: ='Rede de Distribuição'!D11 -> 7356.54 | E49: m | G49: PVC DEFOFO JE 1 MPA DN 250 | H49: 250 | I49: 274 | J49: 11 | K49: 252
A50: Hf = J x L | C50: Hf= | D50: =D45*D49 -> 66.5767 | E50: m
A52: Desnível do recalque
A53: Cota Piezométrica do NA captação | D53: ='Rede de Distribuição'!$H$46 -> 394.749 | E53: m
A54: Cota do NA máximo do reservatório | D54: ='Rede de Distribuição'!N15+3 -> 425.045 | E54: m
A55: Desnível Geométrico | C55: Hg= | D55: =D54-D53 -> 30.3 | E55: m
A57: Altura Manométrica
A58: Hm = Hg + Hf + 10,00 | C58: Hm= | D58: =D55+D50+10 -> 106.88 | E58: m.c.a
A59: Hg = desnível geométrico
A60: Hf = perda de carga distribuída
A61: 7,00 = perdas de carga localizadas
A64: POTÊNCIA DA BOMBA
A65: Pb = Q x Hmt / 75 x n | C65: Pb= | D65: =C24*D58/(75*0.5) -> 3.33 | E65: CV
A66: n=50%
A68: POTÊNCIA DO MOTOR
A69: Pmot = Pb x f | C69: Pmot= | D69: =D65*1.5 -> 5 | E69: CV
A70: f=50%
A72: GOLPE DE ARÍETE
A73: Celeridade de onda de pressão | C73: a= | D73: =9900/(48.3+18*D36/D37)^0.5 -> 467.57 | E73: m/s
A74: a = 9900 / (48,3 + k x D/e)1/2
A76: Sobrepressão (parada lenta) | C76: p= | D76: =D73*D42/9.81 -> 23.76 | E76: m
A77: p = a x V / g
A78: Pressão máxima de golpe | C78: P máx golpe = | E78: =D76+D55 -> 54.06 | F78: m.c.a
A80: P máx golpe = Hg + p
A82: Pressão mínima de golpe | C82: P mín golpe = | D82: =D55-D76 -> 6.54 | E82: m.c.a
A83: P mín golpe = Hg - p
C85: COTA PIEZOMÉTRICA DA PRESSÃO MÁXIMA = | D85: =E78+D53 -> 448.81 | E85: m
C86: COTA PIEZOMÉTRICA DA PRESSÃO MÍNIMA = | D86: =D82+D53 -> 401.29 | E86: m

Sheet Rede de Distribuição (hidden)
D1: Ministério da Integração Nacional – MI Companhia de Desenvolvimento dos Vales do São Francisco e do Parnaíba 3ª Superintendência Regional
A3: DIMENSIONAMENTO DA REDE DE DISTRIBUIÇÃO - LOCALIDADE MURICY AMADOR/PETROLINA
A4: Tx perc. Consumo | D4: 120 | E4: litros/hab/dia | H4: População futura= | M4: =ROUNDUP((D5*D6*(1+D9/100)^D10),0) -> 350 | N4: hab
A5: N° de domicílios | D5: 47 | H5: Vazão máxima de projeto= | M5: =(M4*D4*D7*D8)/86400 -> 0.875 | N5: l/s
A6: N° habt/domicílio | D6: 5 | H6: Extensão da distribuição em marcha= | M6: =B46 -> 11362.19 | N6: m | O6: Rug. | P6: 0.08 | Q6: mm
A7: Coeficiente de cons. Max diário (K1) | D7: 1.2 | H7: Vazão por metro linear de rede= | M7: =M5/M6 -> 7.7e-05 | N7: l/(m.s) | O7: Vazão= | P7: =M5*3.6 -> 3.15 | Q7: m³/h
A8: Coeficiente de cons. Max horár (K2) | D8: 1.5 | H8: Vazão por domicílio= | M8: =(D4*D6)/(86400) -> 0.007 | N8: l/s | O8: Vazão= | P8: =P7/3600 -> 0.00088 | Q8: m³/s
A9: Tx cresciment anual | D9: 2 | E9: % a.a | H9: Altura do NA mínimo do Reservatório= | M9: 6.5 | N9: m
A10: Período alcance proj. | D10: 20 | E10: anos | H10: Horas de funcionamento por dia= | M10: 12 | N10: h
A11: Comprimento Adutora | D11: =7337.54+19 -> 7356.54 | E11: m
A12: Trecho | B12: Extensão | C12: Q | G12: D (calc) | H12: DN | I12: DE | J12: V | K12: Perda de carga | N12: Cotas | P12: Pressão à | Q12: Pressão à
B13: (m) | C13: (l/s) | G13: (m) | H13: (mm) | I13: (mm) | J13: (m/s) | K13: unit. J | L13: Localiz. | M13: total | N13: Montante | O13: Jusante | P13: Montante | Q13: Jusante
C14: Montante | D14: Marcha | E14: Jusante | F14: Fictícia | K14: (m/m) | L14: (m) | M14: (m) | N14: (m) | O14: (m) | P14: (mH2O) | Q14: (mH2O)
A15: RE-01 | B15: 15.67 | C15: =D15+E15 -> 0.875 | D15: =$M$7*B15 -> 0.001 | E15: =SUM(B16:B45)*M7 -> 0.874 | F15: =(E15+C15)/2 -> 0.8745 | H15: =IF(F15>14.57,"200",IF(F15>5.8875,"150", IF(F15>3.1514,"100",IF(F15>1.323,"75","50")))) -> 50 | J15: =(C15/1000)/(0.25*PI()*(H15/1000)^2) -> 0.446 | K15: =perda(F15,H15,$P$6) ->  | M15: =K15*B15+L15 ->  | N15: 422.045 | O15: 422.045 | P15: =M9 -> 6.5 | Q15: =P15+N15-O15-M15 -> 
A16: 01-02 | B16: 402.79 | C16: 0.068 | D16: =$M$7*B16 -> 0.031 | E16: =SUM(B17)*M7 -> 0.037 | F16: =(E16+C16)/2 -> 0.0525 | H16: =IF(F16>14.57,"200",IF(F16>5.8875,"150", IF(F16>3.1514,"100",IF(F16>1.323,"75","50")))) -> 50 | J16: =(C16/1000)/(0.25*PI()*(H16/1000)^2) -> 0.035 | K16: =perda(F16,H16,$P$6) ->  | M16: =K16*B16+L16 ->  | N16: =O15 -> 422.045 | O16: 415.346 | P16: =Q15 -> 
A17: 02-03 | B17: 474.37 | C17: 0.037 | D17: 0.037 | E17: 0 | F17: =(E17+C17)/2 -> 0.0185 | H17: =IF(F17>14.57,"200",IF(F17>5.8875,"150", IF(F17>3.1514,"100",IF(F17>1.323,"75","50")))) -> 50 | J17: =(C17/1000)/(0.25*PI()*(H17/1000)^2) -> 0.019 | K17: =perda(F17,H17,$P$6) ->  | M17: =K17*B17+L17 ->  | N17: =O16 -> 415.346 | O17: 416.047 | P17: =Q16 -> 
A18: 01-04 | B18: 32.28 | C18: 0.806 | D18: 0.002 | E18: =SUM(B19:B45)*M7 -> 0.804 | F18: =(E18+C18)/2 -> 0.805 | H18: =IF(F18>14.57,"200",IF(F18>5.8875,"150", IF(F18>3.1514,"100",IF(F18>1.323,"75","50")))) -> 50 | J18: =(C18/1000)/(0.25*PI()*(H18/1000)^2) -> 0.41 | K18: =perda(F18,H18,$P$6) ->  | M18: =K18*B18+L18 ->  | N18: =O15 -> 422.045 | O18: 422.567 | P18: =Q15 -> 
A19: 04-05 | B19: 1843.75 | C19: 0.804 | D19: 0.142 | E19: =SUM(B20:B45)*M7 -> 0.662 | F19: =(E19+C19)/2 -> 0.733 | H19: =IF(F19>14.57,"200",IF(F19>5.8875,"150", IF(F19>3.1514,"100",IF(F19>1.323,"75","50")))) -> 50 | J19: =(C19/1000)/(0.25*PI()*(H19/1000)^2) -> 0.409 | K19: =perda(F19,H19,$P$6) ->  | M19: =K19*B19+L19 ->  | N19: =O18 -> 422.567 | O19: 416.161 | P19: =Q18 -> 
A20: 05-06 | B20: 40.45 | C20: 0.012 | D20: 0.003 | E20: =SUM(B21:B22)*M7 -> 0.009 | F20: =(E20+C20)/2 -> 0.0105 | H20: =IF(F20>14.57,"200",IF(F20>5.8875,"150", IF(F20>3.1514,"100",IF(F20>1.323,"75","50")))) -> 50 | J20: =(C20/1000)/(0.25*PI()*(H20/1000)^2) -> 0.006 | K20: =perda(F20,H20,$P$6) ->  | M20: =K20*B20+L20 ->  | N20: =O19 -> 416.161 | O20: 415.2 | P20: =Q19 -> 
A21: 06-07 | B21: 39.56 | C21: 0.003 | D21: 0.003 | E21: 0 | F21: =(E21+C21)/2 -> 0.0015 | H21: 50 | J21: =(C21/1000)/(0.25*PI()*(H21/1000)^2) -> 0.002 | K21: =perda(F21,H21,$P$6) ->  | M21: =K21*B21+L21 ->  | N21: =O20 -> 415.2 | O21: 415.13 | P21: =Q20 -> 
A22: 06-08 | B22: 76.2 | C22: 0.006 | D22: 0.006 | E22: 0 | F22: 0.003 | H22: 50 | J22: 0.003 | N22: =O20 -> 415.2 | O22: 416.6 | P22: =Q20 -> 
A23: 05-09 | B23: 297.44 | C23: 0.043 | D23: 0.023 | E23: =SUM(B24:B25)*M7 -> 0.02 | F23: 0.0315 | H23: 50 | J23: 0.022 | N23: =O19 -> 416.161 | O23: 413.8 | P23: =Q19 -> 
A24: 09-10 | B24: 98.13 | C24: 0.008 | D24: 0.008 | E24: 0 | F24: 0.004 | H24: 50 | J24: 0.004 | N24: =O23 -> 413.8 | O24: 413 | P24: =Q23 -> 
A25: 09-11 | B25: 158.24 | C25: 0.012 | D25: 0.012 | E25: 0 | F25: 0.006 | H25: 50 | J25: 0.006 | N25: =O23 -> 413.8 | O25: 411.48 | P25: =Q23 -> 
A26: 05-12 | B26: 158.47 | C26: 0.607 | D26: 0.012 | E26: =SUM(B27:B45)*M7 -> 0.595 | F26: 0.601 | H26: 50 | J26: 0.309 | N26: =O19 -> 416.161 | O26: 415.13 | P26: =Q19 -> 
A27: 12-13 | B27: 40.41 | C27: 0.003 | D27: 0.003 | E27: 0 | F27: =(E27+C27)/2 -> 0.0015 | H27: =IF(F27>14.57,"200",IF(F27>5.8875,"150", IF(F27>3.1514,"100",IF(F27>1.323,"75","50")))) -> 50 | J27: =(C27/1000)/(0.25*PI()*(H27/1000)^2) -> 0.002 | K27: =perda(F27,H27,$P$6) ->  | M27: =K27*B27+L27 ->  | N27: =O26 -> 415.13 | O27: 415.983 | P27: =Q26 -> 
A28: 12-14 | B28: 392.13 | C28: 0.592 | D28: 0.03 | E28: =SUM(B29:B45)*M7 -> 0.562 | F28: 0.577 | H28: 50 | J28: 0.302 | N28: =O26 -> 415.13 | O28: 410.561 | P28: =Q26 -> 
A29: 14-15 | B29: 31.78 | C29: 0.011 | D29: 0.002 | E29: =SUM(B30:B31)*M7 -> 0.009 | F29: 0.01 | H29: 50 | J29: 0.006 | N29: =O28 -> 410.561 | O29: 412.644 | P29: =Q28 -> 
A30: 15-16 | B30: 83.81 | C30: 0.006 | D30: 0.006 | E30: 0 | F30: 0.003 | H30: 50 | J30: 0.003 | N30: =O29 -> 412.644 | O30: 414.123 | P30: =Q29 -> 
A31: 15-17 | B31: 37.77 | C31: 0.003 | D31: 0.003 | E31: 0 | F31: =(E31+C31)/2 -> 0.0015 | H31: =IF(F31>14.57,"200",IF(F31>5.8875,"150", IF(F31>3.1514,"100",IF(F31>1.323,"75","50")))) -> 50 | J31: =(C31/1000)/(0.25*PI()*(H31/1000)^2) -> 0.002 | K31: =perda(F31,H31,$P$6) ->  | M31: =K31*B31+L31 ->  | N31: =O29 -> 412.644 | O31: 412.5 | P31: =Q29 -> 
A32: 14-18 | B32: 375.01 | C32: 0.55 | D32: 0.029 | E32: =SUM(B33:B45)*M7 -> 0.521 | F32: 0.5355 | H32: 50 | J32: 0.28 | N32: =O28 -> 410.561 | O32: 407.32 | P32: =Q28 -> 
A33: 18-19 | B33: 321.8 | C33: 0.203 | D33: 0.025 | E33: =SUM(B34:B38)*M7 -> 0.178 | F33: 0.1905 | H33: 50 | J33: 0.103 | N33: =O32 -> 407.32 | O33: 401.47 | P33: =Q32 -> 
A34: 19-20 | B34: 238.73 | C34: 0.018 | D34: 0.018 | E34: 0 | F34: 0.009 | H34: 50 | J34: 0.009 | N34: =O33 -> 401.47 | O34: 415.84 | P34: =Q33 -> 
A35: 19-21 | B35: 830.49 | C35: 0.16 | D35: 0.064 | E35: =SUM(B36:B38)*M7 -> 0.096 | F35: 0.128 | H35: 50 | J35: 0.081 | N35: =O33 -> 401.47 | O35: 400.53 | P35: =Q33 -> 
A36: 21-22 | B36: 888.91 | C36: 0.095 | D36: 0.068 | E36: =SUM(B37:B38)*M7 -> 0.027 | F36: 0.061 | H36: 50 | J36: 0.048 | N36: =O35 -> 400.53 | O36: 405.88 | P36: =Q35 -> 
A37: 22-23 | B37: 118.16 | C37: 0.027 | D37: 0.009 | E37: =SUM(B38)*M7 -> 0.018 | F37: 0.0225 | H37: 50 | J37: 0.014 | N37: =O36 -> 405.88 | O37: 407.754 | P37: =Q36 -> 
A38: 23-24 | B38: 234.96 | C38: 0.018 | D38: 0.018 | E38: 0 | F38: 0.009 | H38: 50 | J38: 0.009 | N38: =O37 -> 407.754 | O38: 411.532 | P38: =Q37 -> 
A39: 18-25 | B39: 47.55 | C39: 0.318 | D39: 0.004 | E39: =SUM(B40:B45)*M7 -> 0.314 | F39: 0.316 | H39: 50 | J39: =(C39/1000)/(0.25*PI()*(H39/1000)^2) -> 0.162 | K39: =perda(F39,H39,$P$6) ->  | M39: =K39*B39+L39 ->  | N39: =O32 -> 407.32 | O39: 408.218 | P39: =Q32 -> 
A40: 25-26 | B40: 47.91 | C40: 0.004 | D40: 0.004 | E40: 0 | F40: 0.002 | H40: 50 | J40: 0.002 | N40: =O39 -> 408.218 | O40: 406.8 | P40: =Q39 -> 
A41: 25-27 | B41: 645.54 | C41: 0.311 | D41: 0.05 | E41: =SUM(B42:B45)*M7 -> 0.261 | F41: 0.286 | H41: 50 | J41: 0.158 | N41: =O39 -> 408.218 | O41: 398.072 | P41: =Q39 -> 
A42: 27-28 | B42: 1312.75 | C42: 0.261 | D42: 0.101 | E42: =SUM(B43:B45)*M7 -> 0.16 | F42: 0.2105 | H42: 50 | J42: 0.133 | N42: =O41 -> 398.072 | O42: 406.018 | P42: =Q41 -> 
A43: 28-29 | B43: 59.05 | C43: 0.005 | D43: 0.005 | E43: 0 | F43: 0.0025 | H43: 50 | J43: 0.003 | N43: =O42 -> 406.018 | O43: 406.39 | P43: =Q42 -> 
A44: 28-30 | B44: 1897.21 | C44: 0.155 | D44: 0.146 | E44: =SUM(B45)*M7 -> 0.009 | F44: 0.082 | H44: 50 | J44: 0.079 | N44: =O42 -> 406.018 | O44: 386.9 | P44: =Q42 -> 
A45: 30-31 | B45: 120.87 | C45: 0.009 | D45: 0.009 | E45: 0 | F45: 0.0045 | H45: 50 | J45: 0.005 | N45: =O44 -> 386.9 | O45: 388 | P45: =Q44 -> 
A46: Ext. Total (m)= | B46: =SUM(B15:B45) -> 11362.19 | C46: Cota Captação | H46: 394.749
B50: Quantitativo da tubulação da Rede de Distribuição (m)
C51: 25 | D51: 32 | E51: 42 | F51: 50 | G51: 75 | H51: 100 | I51: 150
B52: Trechos | C52: 25 mm | D52: 32 mm | E52: 42 mm | F52: 50 mm | G52: 75 mm | H52: 100 mm | I52: 150 mm
B53: =A15 -> RE-01 | C53: =IF(H15=25,B15,0) -> 0 | D53: =IF(H15=32,B15,0) -> 0 | E53: =IF(H15=42,B15,0) -> 0 | F53: =SUMIF(H15,50,B15) -> 15.67 | G53: =SUMIF(H15,75,B15) -> 0 | H53: =SUMIF(H15,100,B15) -> 0 | I53: =SUMIF(H15,150,B15) -> 0
B54: 01-02 | C54: 0 | D54: 0 | E54: 0 | F54: 402.79 | G54: 0 | H54: 0 | I54: 0
B55: 02-03 | C55: 0 | D55: 0 | E55: 0 | F55: 474.37 | G55: 0 | H55: 0 | I55: 0
B56: 01-04 | C56: 0 | D56: 0 | E56: 0 | F56: 32.28 | G56: 0 | H56: 0 | I56: 0
B57: 04-05 | C57: 0 | D57: 0 | E57: 0 | F57: 1843.75 | G57: 0 | H57: 0 | I57: 0
B58: 05-06 | C58: 0 | D58: 0 | E58: 0 | F58: 40.45 | G58: 0 | H58: 0 | I58: 0
B59: 06-07 | C59: 0 | D59: 0 | E59: 0 | F59: 39.56 | G59: 0 | H59: 0 | I59: 0
B60: 06-08 | C60: 0 | D60: 0 | E60: 0 | F60: 76.2 | G60: 0 | H60: 0 | I60: 0
B61: 05-09 | C61: 0 | D61: 0 | E61: 0 | F61: 297.44 | G61: 0 | H61: 0 | I61: 0
B62: 09-10 | C62: 0 | D62: 0 | E62: 0 | F62: 98.13 | G62: 0 | H62: 0 | I62: 0
B63: 09-11 | C63: 0 | D63: 0 | E63: 0 | F63: 158.24 | G63: 0 | H63: 0 | I63: 0
B64: 05-12 | C64: 0 | D64: 0 | E64: 0 | F64: 158.47 | G64: 0 | H64: 0 | I64: 0
B65: 12-13 | C65: 0 | D65: 0 | E65: 0 | F65: 40.41 | G65: 0 | H65: 0 | I65: 0
B66: 12-14 | C66: 0 | D66: 0 | E66: 0 | F66: 392.13 | G66: 0 | H66: 0 | I66: 0
B67: 14-15 | C67: 0 | D67: 0 | E67: 0 | F67: 31.78 | G67: 0 | H67: 0 | I67: 0
B68: 15-16 | C68: 0 | D68: 0 | E68: 0 | F68: 83.81 | G68: 0 | H68: 0 | I68: 0
B69: 15-17 | C69: 0 | D69: 0 | E69: 0 | F69: 37.77 | G69: 0 | H69: 0 | I69: 0
B70: 14-18 | C70: 0 | D70: 0 | E70: 0 | F70: 375.01 | G70: 0 | H70: 0 | I70: 0
B71: 18-19 | C71: 0 | D71: 0 | E71: 0 | F71: 321.8 | G71: 0 | H71: 0 | I71: 0
B72: 19-20 | C72: 0 | D72: 0 | E72: 0 | F72: 238.73 | G72: 0 | H72: 0 | I72: 0
B73: 19-21 | C73: 0 | D73: 0 | E73: 0 | F73: 830.49 | G73: 0 | H73: 0 | I73: 0
B74: 21-22 | C74: 0 | D74: 0 | E74: 0 | F74: 888.91 | G74: 0 | H74: 0 | I74: 0
B75: 22-23 | C75: 0 | D75: 0 | E75: 0 | F75: 118.16 | G75: 0 | H75: 0 | I75: 0
B76: 23-24 | C76: 0 | D76: 0 | E76: 0 | F76: 234.96 | G76: 0 | H76: 0 | I76: 0
B77: =A39 -> 18-25 | C77: 0 | D77: 0 | E77: 0 | F77: 47.55 | G77: 0 | H77: 0 | I77: 0
B78: 25-26 | C78: 0 | D78: 0 | E78: 0 | F78: 47.91 | G78: 0 | H78: 0 | I78: 0
B79: 25-27 | C79: 0 | D79: 0 | E79: 0 | F79: 645.54 | G79: 0 | H79: 0 | I79: 0
B80: 27-28 | C80: 0 | D80: 0 | E80: 0 | F80: 1312.75 | G80: 0 | H80: 0 | I80: 0
B81: 28-29 | C81: 0 | D81: 0 | E81: 0 | F81: 59.05 | G81: 0 | H81: 0 | I81: 0
B82: 28-30 | C82: 0 | D82: 0 | E82: 0 | F82: 1897.21 | G82: 0 | H82: 0 | I82: 0
B83: 30-31 | C83: 0 | D83: 0 | E83: 0 | F83: 120.87 | G83: 0 | H83: 0 | I83: 0
B84: Somatório | C84: =SUM(C53:C76) -> 0 | D84: 0 | E84: 0 | F84: =SUM(F53:F83) -> 11362.19 | G84: 0 | H84: 0 | I84: 0
B85: Totais | D85: Extensão total | G85: =SUM(C84:I84) -> 11362.19
B86: Quantitativo da tubulação da Adutora de Recalque (m)
C87: 25 | D87: 32 | E87: 42 | F87: 50 | G87: 75 | H87: 100 | I87: 150
C88: 0 | D88: 0 | E88: 0 | F88: =D11 -> 7356.54 | G88: 0 | H88: 0 | I88: 0
B89: Totais | D89: Extensão total | G89: =SUM(C88:I88) -> 7356.54

Sheet ENCARGOS SOCIAIS
A4: DETALHAMENTO DOS ENCARGOS SOCIAIS
A6: PERÍMETRO(S): NILO COELHO
A7: =#REF! -> 
A9: CÓDIGO | B9: DESCRIÇÃO | F9: Horista | G9: Mensalista
F10: % | G10: %
A11: GRUPO A
A12: A1 | B12: INSS | F12: 0 | G12: 0
A13: A2 | B13: SESI | F13: 0.015 | G13: 0.015
A14: A3 | B14: SENAI | F14: 0.01 | G14: 0.01
A15: A4 | B15: INCRA | F15: 0.002 | G15: 0.002
A16: A5 | B16: SEBRAE | F16: 0.006 | G16: 0.006
A17: A6 | B17: Salário Educação | F17: 0.025 | G17: 0.025
A18: A8 | B18: Seguro contra acidente | F18: 0.03 | G18: 0.03
A19: A8 | B19: FGTS | F19: 0.08 | G19: 0.08
A20: A9 | B20: SECONCI | F20: 0 | G20: 0
A21: A | B21: Total dos Encargos Sociais Básicos | F21: =ROUND(SUM(F12:F20),4) -> 0.168 | G21: =ROUND(SUM(G12:G20),4) -> 0.168
A22: GRUPO B
A23: B1 | B23: Repouso Semanal Remunerado | F23: 0.1809 | G23: 0
A24: B2 | B24: Feriados | F24: 0.0434 | G24: 0
A25: B3 | B25: Axílio - Enfermidade | F25: 0.0092 | G25: 0.0069
A26: B4 | B26: 13º Salário | F26: 0.1103 | G26: 0.0833
A27: B5 | B27: Licença Paternidade | F27: 0.0008 | G27: 0.0006
A28: B6 | B28: Faltas Justificadas | F28: 0.0074 | G28: 0.0056
A29: B7 | B29: Dias de Chuvas | F29: 0.0231 | G29: 0
A30: B8 | B30: Auxílio Acidente de Trabalho | F30: 0.0012 | G30: 0.0009
A31: B9 | B31: Férias Gozadas | F31: 0.1021 | G31: 0.0771
A32: B10 | B32: Salário Maternidade | F32: 0.0003 | G32: 0.0002
A33: B | B33: Total de Encargos Sociais que recebem incidências de A | F33: =ROUND(SUM(F23:F32),4) -> 0.4787 | G33: =ROUND(SUM(G23:G32),4) -> 0.1746
A34: GRUPO C
A35: C1 | B35: Aviso Prévio Indenizado | F35: 0.0671 | G35: 0.0507
A36: C2 | B36: Aviso Prévio Trabalhado | F36: 0.0016 | G36: 0.0012
A37: C3 | B37: Férias Indenizadas | F37: 0.0377 | G37: 0.0285
A38: C4 | B38: Depósito Rescisão Sem Justa Causa | F38: 0.0528 | G38: 0.0399
A39: C5 | B39: Indenização Adicional | F39: 0.0056 | G39: 0.0043
A40: C | B40: Total de Encargos Sociais que não recebem incidências de A | F40: =SUM(F35:F39) -> 0.1648 | G40: =SUM(G35:G39) -> 0.1246
A41: GRUPO D
A42: D1 | B42: Reincidencias de Grupo A sobre Grupo B | F42: 0.0804 | G42: 0.0293
A43: D2 | B43: Reincidência de Grupo A sobre Aviso Prévio Trabalhado e Reincidência do FGTS sobre Aviso Prévio Reincidência do FGTS sobre aviso prévio | F43: 0.0056 | G43: 0.0043
A44: D | B44: Total de Reincidências de um grupo sobre o outro | F44: =ROUND(SUM(F42:F43),4) -> 0.086 | G44: =ROUND(SUM(G42:G43),4) -> 0.0336
A45: TOTAL (A+B+C+D) | F45: =F44+F40+F33+F21 -> 0.8975 | G45: =G44+G40+G33+G21 -> 0.5008

Sheet CRONOGRAMA
B6: =Geral!A6 -> Fornecimento de Sistema de Captação Flutuante, Sistema de Acionamento de Motores de Indução Trifásicos e Grupo Gerador necessário para o Perímetro Irrigado Senador Nilo Coelho
B7: CRONOGRAMA FÍSICO-FINANCEIRO
D8: semanas | AF8: % | AG8: VALOR
B10: ITEM | C10: DISCRIMINAÇÃO DOS SERVIÇOS | D10: 1 | E10: 2 | F10: 3 | G10: 4 | H10: 5 | I10: 6 | J10: 7 | K10: 8 | L10: 9 | M10: 10 | N10: 11 | O10: 12 | P10: 13 | Q10: 14 | R10: 15 | S10: 16 | T10: 17 | U10: 18 | V10: 19 | W10: 20 | X10: 21 | Y10: 22 | Z10: 23 | AA10: 24 | AB10: 25 | AC10: 26 | AD10: 27 | AE10: 28
B11: 1 | C11: SERVIÇOS PRELIMINARES | AF11: =AG11/$AG$36 ->  | AG11: =SUM(AG12:AG16) -> 0
B12: 1.1 | C12: Aluguel de Container (2 unidades) | AG12: =Geral!G12 -> 0
B13: 1.2 | C13: Placa de Obra em Chapa de Aço Galvanizado | AG13: =Geral!G13 -> 0
B14: 1.3 | C14: Administração Local | AG14: =Geral!G14 -> 0
B15: 1.4 | C15: Mobilização | AG15: =Geral!G15 -> 0
B16: 1.5 | C16: Desmobilização | AG16: =Geral!G16 -> 0
B17: =B11+1 -> 2 | C17: SISTEMA DE CAPTAÇÃO FLUTUANTE | AG17: =AG18+AG22+AG25+AG27+AG30+AG32 -> 0
B18: 2.1 | C18: Grupo Gerador | AG18: =SUM(AG19:AG21) -> 0
B19: 2.1.1 | C19: Fornecimento e Instalação de Grupo Gerador | AG19: =Geral!G19 -> 0
B20: 2.1.2 | C20: Fornecimento de Grupo Gerador Reserva | AG20: =Geral!G20 -> 0
B21: 2.1.3 | C21: Fornecimento e Instalação do Tanque de Combustível | AG21: =Geral!G21 -> 0
B22: 2.2 | C22: Sistema de Acionamento | AG22: =SUM(AG23:AG24) -> 0
B23: 2.2.1 | C23: Fornecimento e Instalação dos CCM's para os Motores, 02 soft-starter | AG23: =Geral!G23 -> 0
B24: 2.2.2 | C24: Fornecimento e Instalação de Paineis de Operação | AG24: =Geral!G24 -> 0
B25: 2.3 | C25: Sistema de Bombeamento | AG25: =AG26 -> 0
B26: 2.3.1 | C26: Fornecimento e Instalação do Sistema de Bombeamento Flutuante | AG26: =Geral!G26 -> 0
B27: 2.4 | C27: Sistema de Iluminação e Combate a Incêndio | AG27: =SUM(AG28:AG29) -> 0
B28: 2.4.1 | C28: Fornecimento e Instalação dos Equipamentos de Detecção e Combate a Incêndio | AG28: =Geral!G28 -> 0
B29: 2.4.2 | C29: Fornecimento, Instalação, Montagem e Testes dos Equipamentos de Iluminação | AG29: =Geral!G29 -> 0
B30: 2.5 | C30: Sistema de Aterramento | AG30: =AG31 -> 0
B31: 2.5.1 | C31: Fornecimento e Instalação do Sistema de Aterramento | AG31: =Geral!G31 -> 0
B32: 2.6 | C32: Comissionamento, Operação e Desmontagem do Sistema | AG32: =AG33 -> 0
B33: 2.6.1 | C33: Comissionamento e Start-up | AG33: =Geral!G33 -> 0
B34: 3 | C34: PROJETO EXECUTIVO | AG34: =AG35 -> 0
B35: 3.1 | C35: Elaboração do Projeto Executivo | AG35: =Geral!G35 -> 0
AF36: =AF11+AF17+AF34 ->  | AG36: =AG11+AG17+AG34 -> 0
